bitfinex-derivatives/quotes_BNBF0:USTF0_20250221
["timestamp","ask_amount","ask_price","bid_price","bid_amount"]
[1740147737201,1.08672663,665.35,665.18,0.30067049]
[1740147737399,1.08672663,665.34,665.18,0.30067049]
[1740147737599,1.215,666.34,665.18,0.30067049]
[1740147737600,1.08672663,665.33,665.18,0.30067049]
[1740147737800,1.08672663,665.32,665.18,0.30067049]
[1740147738000,0.81363864,665.33,665.18,0.30067049]
[1740147738204,1.08673483,665.32,665.18,0.30067049]
[1740147738400,1.08673483,665.31,665.18,0.30067049]
[1740147738599,1.215,666.34,665.18,0.30067049]
[1740147738797,1.08669022,666.33,665.18,0.30067049]
[1740147739004,1.08669022,666.32,665.18,0.30067049]
[1740147739300,1.08669022,666.31,665.18,0.30067049]
[1740147739602,1.08669022,666.3,665.18,0.30067049]
[1740147739800,1.08669022,666.29,665.18,0.30067049]
[1740147739998,1.08665979,666.28,665.18,0.30067049]
[1740147740200,1.08665979,666.27,665.18,0.30067049]
[1740147740395,1.08665979,666.26,665.18,0.30067049]
[1740147740602,1.08665979,666.25,665.18,0.30067049]
[1740147740800,0.81354837,666.28,665.18,0.30067049]
[1740147740801,1.08665979,666.24,665.18,0.30067049]
[1740147740999,1.90020816,666.23,665.18,0.30067049]
[1740147741201,1.08665979,666.22,665.18,0.30067049]
[1740147741396,1.08665979,666.21,665.18,0.30067049]
[1740147741602,1.08665979,666.2,665.18,0.30067049]
[1740147741902,1.08665979,666.19,665.18,0.30067049]
[1740147742101,1.08665979,666.18,665.18,0.30067049]
[1740147742304,1.08665979,666.17,665.18,0.30067049]
[1740147742506,1.08665979,666.16,665.18,0.30067049]
[1740147742701,1.08663455,666.15,665.18,0.30067049]
[1740147743006,1.08663455,666.14,665.18,0.30067049]
[1740147743208,1.08663455,666.13,665.18,0.30067049]
[1740147743505,1.90018292,666.12,665.18,0.30067049]
[1740147743706,1.08663455,666.11,665.18,0.30067049]
[1740147744006,1.08663455,666.1,665.18,0.30067049]
[1740147744306,1.90018292,666.09,665.18,0.30067049]
[1740147744507,1.90018292,666.08,665.18,0.30067049]
[1740147744806,1.08663455,666.07,665.18,0.30067049]
[1740147745005,1.08663455,666.06,665.18,0.30067049]
[1740147745204,1.90018292,666.05,665.18,0.30067049]
[1740147745405,1.08663455,666.04,665.18,0.30067049]
[1740147745606,1.08663455,666.03,665.18,0.30067049]
[1740147745806,1.08663455,666.02,665.18,0.30067049]
[1740147746008,1.08663455,666.01,665.18,0.30067049]
[1740147746202,1.08663455,666.0,665.18,0.30067049]
[1740147746402,1.08663455,665.99,665.18,0.30067049]
[1740147746600,1.08663455,665.98,665.18,0.30067049]
[1740147746809,1.08663455,665.97,665.18,0.30067049]
[1740147747103,1.08663455,665.96,665.18,0.30067049]
[1740147747308,1.08663455,665.95,665.18,0.30067049]
[1740147747508,1.08663455,665.94,665.18,0.30067049]
[1740147747808,1.08663455,665.93,665.18,0.30067049]
[1740147748009,1.08663455,665.92,665.18,0.30067049]
[1740147748209,1.08663455,665.91,665.18,0.30067049]
[1740147748410,1.08663455,665.9,665.18,0.30067049]
[1740147748613,1.08663455,665.89,665.18,0.30067049]
[1740147748810,1.08663455,665.88,665.18,0.30067049]
[1740147749010,1.08663455,665.87,665.18,0.30067049]
[1740147749305,1.08663455,665.86,665.18,0.30067049]
[1740147749610,1.08663455,665.85,665.18,0.30067049]
[1740147749807,1.08663455,665.84,665.18,0.30067049]
[1740147750003,1.08663455,665.83,665.18,0.30067049]
[1740147750210,1.08663455,665.82,665.18,0.30067049]
[1740147750410,1.08663455,665.81,665.18,0.30067049]
[1740147750611,1.08663455,665.8,665.18,0.30067049]
[1740147750810,1.08663455,665.79,665.18,0.30067049]
[1740147751011,1.08663455,665.78,665.18,0.30067049]
[1740147751207,1.08663455,665.77,665.18,0.30067049]
[1740147751413,1.08663455,665.76,665.18,0.30067049]
[1740147751612,1.08663455,665.75,665.18,0.30067049]
[1740147751912,1.08663455,665.74,665.18,0.30067049]
[1740147752207,1.08663455,665.73,665.18,0.30067049]
[1740147752406,0.81354837,665.74,665.18,0.30067049]
[1740147752407,1.08663455,665.72,665.18,0.30067049]
[1740147752614,1.08663455,665.71,665.18,0.30067049]
[1740147752911,1.08663455,665.7,665.18,0.30067049]
[1740147753112,1.08663455,665.69,665.18,0.30067049]
[1740147753307,1.08663455,665.68,665.18,0.30067049]
[1740147753510,1.08663455,665.67,665.18,0.30067049]
[1740147753711,1.08663455,665.66,665.18,0.30067049]
[1740147753907,1.08663455,665.65,665.45,1.10728752]
[1740147754105,1.08663455,665.64,665.45,1.10728752]
[1740147754310,1.08663455,665.63,665.45,1.10728752]
[1740147754506,1.08663455,665.62,665.45,1.10728752]
[1740147754715,1.08663455,665.61,665.45,1.10728752]
[1740147754909,1.90018292,665.6,665.45,1.10728752]
[1740147755107,1.90018292,665.59,665.45,1.10728752]
[1740147755414,1.90018292,665.58,665.45,1.10728752]
[1740147755613,1.90018292,665.57,665.45,1.10728752]
[1740147755913,1.90018292,665.56,665.45,1.10728752]
[1740147756113,1.08663455,665.55,665.34,1.10728752]
[1740147756310,1.08663455,665.54,665.34,1.10728752]
[1740147756512,1.08663455,665.53,665.34,1.10728752]
[1740147756712,1.90018292,665.52,665.34,1.10728752]
[1740147757013,1.08648634,665.51,665.34,1.10728752]
[1740147757213,0.81354837,665.52,665.34,1.10728752]
[1740147757405,1.08651533,665.51,665.34,1.10728752]
[1740147757607,3.25941688,666.65,665.34,1.10728752]
[1740147757811,7.59946919,666.64,665.34,1.10728752]
[1740147758011,4.34588966,666.63,665.34,1.10728752]
[1740147758207,4.34588966,666.62,665.34,1.10728752]
[1740147758407,4.34588966,666.61,665.34,1.10728752]
[1740147758610,4.34588966,666.6,665.34,1.10728752]
[1740147758806,4.34588966,666.59,665.34,1.10728752]
[1740147759015,4.34588966,666.58,665.47,1.10728752]
[1740147759215,4.34588966,666.57,665.47,1.10728752]
[1740147759416,4.34588966,666.56,665.47,1.10728752]
[1740147759716,7.59946919,666.55,665.47,1.10728752]
[1740147759917,4.34588966,666.54,665.47,1.10728752]
[1740147760113,5.15926176,666.53,665.47,1.10728752]
[1740147760315,4.34588966,666.52,665.47,1.10728752]
[1740147760515,5.15926176,666.51,665.47,1.10728752]
[1740147760818,1.08647278,666.5,665.47,1.10728752]
[1740147761018,4.34005231,666.49,665.47,1.10728752]
[1740147761218,1.08647278,666.48,665.47,1.10728752]
[1740147761417,1.89984488,666.47,665.47,1.10728752]
[1740147761713,1.08647278,666.46,665.47,1.10728752]
[1740147761918,1.89984488,666.45,665.47,1.10728752]
[1740147762112,1.08647278,666.44,665.47,1.10728752]
[1740147762317,1.08647278,666.43,665.47,1.10728752]
[1740147762513,3.52668021,666.42,665.32,1.10728752]
[1740147762717,4.34639704,666.41,665.32,1.10728752]
[1740147762914,5.16000431,666.4,665.32,1.10728752]
[1740147763218,5.16000431,666.39,665.32,1.10728752]
[1740147763419,4.34663221,666.38,665.32,1.10728752]
[1740147763616,4.34663221,666.37,665.32,1.10728752]
[1740147763817,4.34663221,666.36,665.32,1.10728752]
[1740147764015,5.16037184,666.35,665.32,1.10728752]
[1740147764216,5.16037184,666.34,665.32,1.10728752]
[1740147764420,4.34699974,666.33,665.32,1.10728752]
[1740147764621,7.60057927,666.32,665.32,1.10728752]
[1740147764920,4.34699974,666.31,665.32,1.10728752]
[1740147765120,4.34699974,666.3,665.32,1.10728752]
[1740147765317,4.34699974,666.29,665.32,1.10728752]
[1740147765518,5.16037184,666.28,665.32,1.10728752]
[1740147765820,4.34699974,666.27,665.29,1.10728752]
[1740147766021,4.34704461,666.26,665.29,1.10728752]
[1740147766221,4.34704461,666.25,665.29,1.10728752]
[1740147766416,4.34704461,666.24,665.29,1.10728752]
[1740147766621,4.34704461,666.23,665.29,1.10728752]
[1740147766821,4.34704461,666.22,665.29,1.10728752]
[1740147767015,5.16041671,666.21,665.29,1.10728752]
[1740147767218,4.34704461,666.2,665.29,1.10728752]
[1740147767421,4.34704461,666.19,665.29,1.10728752]
[1740147767621,4.34704461,666.18,665.29,1.10728752]
[1740147767822,1.90025728,666.17,665.29,1.10728752]
[1740147768121,4.34781681,666.16,665.29,1.10728752]
[1740147768321,4.34793118,666.15,665.29,1.10728752]
[1740147768522,4.34793118,666.14,665.29,1.10728752]
[1740147768721,1.08688518,666.13,665.29,1.10728752]
[1740147768916,1.08688518,666.12,665.25,1.10728752]
[1740147769122,1.08688518,666.11,665.25,1.10728752]
[1740147769319,1.90025728,666.1,665.25,1.10728752]
[1740147769521,1.08688518,666.09,665.25,1.10728752]
[1740147769825,1.90025728,666.08,665.25,1.10728752]
[1740147770024,1.08688518,666.07,665.25,1.10728752]
[1740147770225,1.08688518,666.06,665.25,1.10728752]
[1740147770420,1.90025728,666.05,665.25,1.10728752]
[1740147770622,1.08688518,666.04,665.25,1.10728752]
[1740147770820,1.08688518,666.03,665.25,1.10728752]
[1740147771023,1.90025728,666.02,665.25,1.10728752]
[1740147771225,1.08688518,666.01,665.25,1.10728752]
[1740147771426,1.08688518,666.0,665.25,1.10728752]
[1740147771626,1.08688518,665.99,665.25,1.10728752]
[1740147771827,1.08688518,665.98,665.25,1.10728752]
[1740147772025,1.08688518,665.97,665.25,1.10728752]
[1740147772226,1.90070846,665.96,665.24,1.10728752]
[1740147772421,1.08733636,665.95,665.24,1.10728752]
[1740147772627,1.08733636,665.94,665.24,1.10728752]
[1740147772831,1.08733636,665.93,665.24,1.10728752]
[1740147773028,1.08733636,665.92,665.24,1.10728752]
[1740147773228,1.90070846,665.91,665.24,1.10728752]
[1740147773427,1.08733636,665.9,665.24,1.10728752]
[1740147773623,1.08761252,665.89,665.24,1.10728752]
[1740147773829,1.90098462,665.88,665.24,1.10728752]
[1740147774029,1.90098462,665.87,665.24,1.10728752]
[1740147774228,1.90098462,665.86,665.24,1.10728752]
[1740147774426,1.08761252,665.85,665.24,1.10728752]
[1740147774628,1.90098462,665.84,665.24,1.10728752]
[1740147774828,1.08761252,665.83,665.24,1.10728752]
[1740147775127,1.90098462,665.82,665.24,1.10728752]
[1740147775329,1.08761252,665.81,665.24,1.10728752]
[1740147775528,1.08761252,665.8,665.18,0.30067049]
[1740147775726,1.08761252,665.79,665.18,0.30067049]
[1740147775926,1.08761252,665.78,665.18,0.30067049]
[1740147776228,1.08761252,665.77,665.18,0.30067049]
[1740147776428,1.90098462,665.76,665.18,0.30067049]
[1740147776627,1.08761252,665.75,665.18,0.30067049]
[1740147776828,1.08761252,665.74,665.18,0.30067049]
[1740147777030,1.08761252,665.73,665.18,0.30067049]
[1740147777329,1.08761252,665.72,665.18,0.30067049]
[1740147777523,1.08761252,665.71,665.18,0.30067049]
[1740147777723,1.08761252,665.7,665.18,0.30067049]
[1740147777926,1.90098462,665.69,665.18,0.30067049]
[1740147778123,1.08761252,665.68,665.18,0.30067049]
[1740147778325,1.08761252,665.67,665.18,0.30067049]
[1740147778528,1.90098462,665.66,665.18,0.30067049]
[1740147778728,1.08761252,665.65,665.18,0.30067049]
[1740147778926,1.08761252,665.64,665.18,0.30067049]
[1740147779133,1.90098462,665.63,665.18,0.30067049]
[1740147779330,1.08761252,665.62,665.18,0.30067049]
[1740147779531,1.08761252,665.61,665.18,0.30067049]
[1740147779732,1.08761252,665.6,665.18,0.30067049]
[1740147779933,1.90098462,665.59,665.18,0.30067049]
[1740147780233,1.08761252,665.58,665.18,0.30067049]
[1740147780527,1.08761252,665.57,665.18,0.30067049]
[1740147780732,1.90098462,665.56,665.18,0.30067049]
[1740147780934,0.8133721,665.56,665.18,0.30067049]
[1740147781132,1.9009571,665.55,665.18,0.30067049]
[1740147781331,1.087585,665.54,665.18,0.30067049]
[1740147781527,1.087585,665.53,665.18,0.30067049]
[1740147781733,1.087585,665.52,665.18,0.30067049]
[1740147782033,1.9009571,665.51,665.18,0.30067049]
[1740147782333,1.087585,665.5,665.18,0.30067049]
[1740147782536,1.9009571,665.49,665.18,0.30067049]
[1740147782834,1.087585,665.48,665.18,0.30067049]
[1740147783031,1.9009571,665.47,665.18,0.30067049]
[1740147783234,1.087585,665.46,665.18,0.30067049]
[1740147783427,1.087585,665.45,665.18,0.30067049]
[1740147783628,1.9009571,665.44,665.18,0.30067049]
[1740147783828,1.087585,665.43,665.18,0.30067049]
[1740147784035,1.087585,665.42,665.18,0.30067049]
[1740147784228,1.9009571,665.41,665.18,0.30067049]
[1740147784428,1.087585,665.4,665.18,0.30067049]
[1740147784632,1.087585,665.39,665.18,0.30067049]
[1740147784835,0.8133721,665.39,665.18,0.30067049]
[1740147785237,2.44271708,666.49,665.18,0.30067049]
[1740147785437,1.08774256,666.48,665.18,0.30067049]
[1740147785636,1.08774256,666.47,665.18,0.30067049]
[1740147785836,1.08774256,666.46,665.18,0.30067049]
[1740147786038,1.08774256,666.45,665.18,0.30067049]
[1740147786238,1.90210933,666.44,665.18,0.30067049]
[1740147786536,1.08777081,666.43,665.18,0.30067049]
[1740147786738,1.08776982,666.42,665.18,0.30067049]
[1740147786932,1.08776982,666.41,665.18,0.30067049]
[1740147787239,4.35109395,666.4,665.18,0.30067049]
[1740147787437,4.35109395,666.39,665.18,0.30067049]
[1740147787632,4.35109395,666.38,665.18,0.30067049]
[1740147787834,5.16546072,666.37,665.18,0.30067049]
[1740147788034,4.35109395,666.36,665.18,0.30067049]
[1740147788233,4.35109395,666.35,665.18,0.30067049]
[1740147788437,1.08776982,666.34,665.18,0.30067049]
[1740147788638,1.08776982,666.33,665.18,0.30067049]
[1740147788838,1.08776982,666.32,665.18,0.30067049]
[1740147789137,4.35138255,666.31,665.18,0.30067049]
[1740147789339,4.35138255,666.3,665.18,0.30067049]
[1740147789539,4.35138255,666.29,665.18,0.30067049]
[1740147789736,4.35138255,666.28,665.18,0.30067049]
[1740147789937,4.35138255,666.27,665.18,0.30067049]
[1740147790236,4.35138255,666.26,665.18,0.30067049]
[1740147790436,1.08776982,666.25,665.18,0.30067049]
[1740147790637,1.08776982,666.24,665.18,0.30067049]
[1740147790834,4.35144145,666.23,665.18,0.30067049]
[1740147791031,4.34485367,666.22,665.18,0.30067049]
[1740147791334,1.90213659,666.21,665.18,0.30067049]
[1740147791543,1.08776982,666.2,665.18,0.30067049]
[1740147791851,1.08776982,666.19,665.18,0.30067049]
[1740147792133,1.08776982,666.18,665.18,0.30067049]
[1740147792331,1.08776982,666.17,665.18,0.30067049]
[1740147792533,1.90213659,666.16,665.18,0.30067049]
[1740147792737,1.08776982,666.15,665.18,0.30067049]
[1740147792935,1.08776982,666.14,665.18,0.30067049]
[1740147793133,1.08776982,666.13,665.18,1.40795801]
[1740147793339,1.08776982,666.12,665.18,1.40795801]
[1740147793534,1.08776982,666.11,665.18,1.40795801]
[1740147793738,1.08776982,666.1,665.18,1.40795801]
[1740147793937,1.08776982,666.09,665.18,1.40795801]
[1740147794136,1.08776982,666.08,665.18,1.40795801]
[1740147794335,1.08776982,666.07,665.18,1.40795801]
[1740147794533,1.08776982,666.06,665.18,1.40795801]
[1740147794839,1.08776982,666.05,665.18,1.40795801]
[1740147795140,1.08776982,666.04,665.18,1.40795801]
[1740147795345,1.08776982,666.03,665.18,1.40795801]
[1740147795640,0.81436677,666.04,665.18,1.40795801]
[1740147795641,1.90213659,666.02,665.19,1.10728752]
[1740147795842,1.08776982,666.01,665.19,1.10728752]
[1740147796040,1.08776982,666.0,665.19,1.10728752]
[1740147796242,1.08776982,665.99,665.19,1.10728752]
[1740147796442,1.08776982,665.98,665.19,1.10728752]
[1740147796741,1.08776982,665.97,665.19,1.10728752]
[1740147796936,1.90213659,665.96,665.19,1.10728752]
[1740147797137,1.08776982,665.95,665.19,1.10728752]
[1740147797337,1.08776982,665.94,665.19,1.10728752]
[1740147797539,1.08776982,665.93,665.19,1.10728752]
[1740147797736,1.90213659,665.92,665.19,1.10728752]
[1740147798039,1.08776982,665.91,665.19,1.10728752]
[1740147798238,1.08776982,665.9,665.19,1.10728752]
[1740147798436,1.08776982,665.89,665.19,1.10728752]
[1740147798741,1.08776982,665.88,665.18,1.40795801]
[1740147798936,1.08776982,665.87,665.18,1.40795801]
[1740147799140,1.08776982,665.86,665.18,1.40795801]
[1740147799336,1.08776982,665.85,665.18,1.40795801]
[1740147799536,1.08776982,665.84,665.18,1.40795801]
[1740147799741,1.08776982,665.83,665.18,1.40795801]
[1740147800040,1.08776982,665.82,665.18,1.40795801]
[1740147800242,1.08794712,665.81,665.18,1.40795801]
[1740147800441,1.08794712,665.8,665.18,1.40795801]
[1740147800637,1.08794712,665.79,665.18,1.40795801]
[1740147800841,1.08794712,665.78,665.18,0.30067049]
[1740147801042,1.08794712,665.77,665.18,0.30067049]
[1740147801244,1.08794712,665.76,665.18,0.30067049]
[1740147801538,1.08794712,665.75,665.18,0.30067049]
[1740147801738,1.08794712,665.74,665.18,0.30067049]
[1740147801936,2.44356028,666.32,665.18,0.30067049]
[1740147801937,1.90231389,665.73,665.18,0.30067049]
[1740147802142,1.08794712,665.72,665.18,0.30067049]
[1740147802340,1.08794712,665.71,665.18,0.30067049]
[1740147802544,1.08794712,665.7,665.18,0.30067049]
[1740147802742,1.08794712,665.69,665.18,0.30067049]
[1740147802942,1.08794712,665.68,665.18,0.30067049]
[1740147803145,1.08794712,665.67,665.18,0.30067049]
[1740147803342,1.08794712,665.66,665.18,0.30067049]
[1740147803546,1.08794712,665.65,665.18,0.30067049]
[1740147803748,1.08777025,665.64,665.18,0.30067049]
[1740147804047,1.08777025,665.63,665.18,0.30067049]
[1740147804348,1.08777025,665.62,665.18,0.30067049]
[1740147804542,1.90213702,665.61,665.18,0.30067049]
[1740147804741,1.08777025,665.6,665.18,0.30067049]
[1740147805041,1.90213702,665.59,665.18,0.30067049]
[1740147805242,1.08777025,665.58,665.18,0.30067049]
[1740147805548,1.90213702,665.57,665.18,0.30067049]
[1740147805743,1.08777025,665.56,665.18,0.30067049]
[1740147806043,1.08777025,665.55,665.18,0.30067049]
[1740147806243,1.08777025,665.54,665.18,0.30067049]
[1740147806547,1.90213702,665.53,665.25,1.10728752]
[1740147806746,1.08777025,665.52,665.25,1.10728752]
[1740147806942,1.08777025,665.51,665.25,1.10728752]
[1740147807247,1.08777025,665.5,665.25,1.10728752]
[1740147807448,1.08777025,665.49,665.25,1.10728752]
[1740147807748,1.0876446,665.48,665.25,1.10728752]
[1740147807950,0.81436677,665.49,665.25,1.10728752]
[1740147807951,1.0876446,665.47,665.25,1.10728752]
[1740147808150,1.0876446,665.46,665.25,1.10728752]
[1740147808350,1.0876446,665.45,665.25,1.10728752]
[1740147808549,1.0876446,665.44,665.25,1.10728752]
[1740147808751,1.0876446,665.43,665.25,1.10728752]
[1740147808951,1.90201137,665.42,665.25,1.10728752]
[1740147809151,1.0876446,665.41,665.25,1.10728752]
[1740147809450,1.08758623,665.4,665.25,1.10728752]
[1740147809651,1.08758623,665.39,665.25,1.10728752]
[1740147809845,1.08758623,665.38,665.25,1.10728752]
[1740147810046,1.08758623,665.37,665.25,1.10728752]
[1740147810246,1.08758623,665.36,665.25,1.10728752]
[1740147810446,1.08758623,665.35,665.25,1.10728752]
[1740147810652,1.08758623,665.34,665.25,1.10728752]
[1740147810853,1.08758623,665.33,665.25,1.10728752]
[1740147811053,1.08758623,665.32,665.25,1.10728752]
[1740147811254,1.08758623,665.31,665.25,1.10728752]
[1740147811451,1.08758623,665.3,665.25,1.10728752]
[1740147811647,1.901953,665.29,665.25,1.10728752]
[1740147811853,1.901953,665.29,665.18,0.30067049]
[1740147811854,1.08758623,665.28,665.21,1.10728752]
[1740147812054,1.08758623,665.27,665.21,1.10728752]
[1740147812248,1.08758623,665.26,665.21,1.10728752]
[1740147812453,1.08758623,665.25,665.21,1.10728752]
[1740147812749,1.901953,665.24,665.21,1.10728752]
[1740147812955,1.08758623,665.23,665.21,1.10728752]
[1740147813255,1.08758623,665.22,665.21,1.10728752]
[1740147813455,1.901953,665.22,665.21,1.10728752]
[1740147814059,1.901953,665.22,665.18,0.30067049]
[1740147814361,1.08758623,665.21,665.18,0.30067049]
[1740147814559,1.08758623,665.2,665.18,0.30067049]
[1740147814760,1.08758623,665.19,665.18,0.30067049]
[1740147814960,1.901953,665.19,665.18,0.30067049]
[1740147817162,1.90170655,665.19,665.18,0.30067049]
[1740147817961,1.90170655,665.19,665.01,1.10728752]
[1740147818158,1.08733978,665.18,665.01,1.10728752]
[1740147818361,1.08733978,665.17,665.01,1.10728752]
[1740147818557,1.90170655,665.16,665.01,1.10728752]
[1740147818863,1.90170655,665.16,664.2,1.10728752]
[1740147818864,1.08733978,665.15,664.2,1.10728752]
[1740147819165,1.08733978,665.14,664.2,1.10728752]
[1740147819464,1.08733978,665.13,664.22,0.30110505]
[1740147819663,1.08733978,665.12,664.22,0.30110505]
[1740147819857,1.08733978,665.11,664.22,0.30110505]
[1740147820059,0.81436677,665.11,664.22,0.30110505]
[1740147820462,1.12212939,667.7,664.22,0.30110505]
[1740147820657,1.08727637,666.55,664.22,0.30110505]
[1740147820858,0.30006151,666.53,664.22,0.30110505]
[1740147821060,1.08726765,666.52,664.22,0.30110505]
[1740147821263,0.30007501,666.5,664.22,0.30110505]
[1740147821560,1.90137262,666.49,664.22,0.30110505]
[1740147821757,0.30008852,666.47,664.22,0.30110505]
[1740147821964,1.90137262,666.46,664.22,0.30110505]
[1740147822165,1.08726765,666.45,664.22,0.30110505]
[1740147822363,1.38736968,666.44,664.22,0.30110505]
[1740147822563,0.30011104,666.42,664.22,0.30110505]
[1740147822764,4.34904867,666.41,664.22,0.30110505]
[1740147823065,0.30012455,666.39,664.22,0.30110505]
[1740147823268,5.16315364,666.38,664.22,0.30110505]
[1740147823471,0.30013806,666.36,664.22,0.30110505]
[1740147823669,4.34904867,666.35,664.22,0.30110505]
[1740147823870,4.34904867,666.34,664.22,0.30110505]
[1740147824069,0.30015608,666.32,664.22,0.30110505]
[1740147824269,4.34904867,666.31,664.22,0.30110505]
[1740147824465,0.30016959,666.29,664.22,0.30110505]
[1740147824670,1.90095808,666.28,664.22,0.30110505]
[1740147824966,0.30018311,666.26,664.22,0.30110505]
[1740147825166,1.08623908,666.25,664.22,0.30110505]
[1740147825369,1.3864312,666.24,664.22,0.30110505]
[1740147825566,1.3864357,666.23,664.22,0.30110505]
[1740147825772,1.38644021,666.22,664.22,0.30110505]
[1740147825968,2.20054969,666.21,664.22,0.30110505]
[1740147826164,1.08623908,666.2,664.22,0.30110505]
[1740147826366,1.38645373,666.19,664.22,0.30110505]
[1740147826566,1.38645823,666.18,664.22,0.30110505]
[1740147826772,1.08590336,666.17,664.22,0.30110505]
[1740147826968,1.38613153,666.16,664.22,0.30110505]
[1740147827169,1.38613604,666.15,664.58,1.10728752]
[1740147827365,1.38614054,666.14,664.59,0.30093742]
[1740147827569,1.08590336,666.13,664.59,0.30093742]
[1740147827771,1.38614956,666.12,664.59,0.30093742]
[1740147827972,1.08590336,666.11,664.59,0.30093742]
[1740147828173,1.08590336,666.1,664.59,0.30093742]
[1740147828367,1.08590336,666.09,664.59,0.30093742]
[1740147828567,1.90000833,666.08,664.59,0.30093742]
[1740147828871,1.08571508,666.07,664.59,0.30093742]
[1740147829071,1.89982005,666.06,664.59,0.30093742]
[1740147829275,1.08571508,666.05,664.59,0.30093742]
[1740147829471,1.08571508,666.04,664.59,0.30093742]
[1740147829671,1.08571508,666.03,664.59,0.30093742]
[1740147829869,1.08571508,666.02,664.59,0.30093742]
[1740147830068,1.08571508,666.01,664.59,0.30093742]
[1740147830269,1.08571508,666.0,664.59,0.30093742]
[1740147830466,1.89982005,665.99,664.59,0.30093742]
[1740147830671,1.08571508,665.98,664.59,0.30093742]
[1740147830867,1.89982005,665.97,664.59,0.30093742]
[1740147831068,0.81410497,665.97,664.63,1.10728752]
[1740147831269,1.08543256,665.96,664.64,0.30091478]
[1740147831474,1.08543256,665.95,664.64,0.30091478]
[1740147831677,1.08543256,665.94,664.64,0.30091478]
[1740147831877,1.08543256,665.93,664.64,0.30091478]
[1740147832076,1.08543256,665.92,664.64,0.30091478]
[1740147832278,1.08543256,665.91,664.64,0.30091478]
[1740147832478,1.08543256,665.9,664.64,0.30091478]
[1740147832680,1.08515734,665.89,664.64,0.30091478]
[1740147832881,1.08515734,665.88,664.64,0.30091478]
[1740147833075,1.08515734,665.87,664.64,1.4082023]
[1740147833278,1.08515734,665.86,664.64,1.4082023]
[1740147833478,1.08515734,665.85,664.64,1.4082023]
[1740147833778,1.89926231,665.84,664.64,1.4082023]
[1740147833978,1.08515734,665.83,664.64,1.4082023]
[1740147834178,1.08515734,665.82,664.64,1.4082023]
[1740147834379,1.89926231,665.81,664.64,1.4082023]
[1740147834573,1.08515734,665.8,664.64,1.4082023]
[1740147834781,1.89926231,665.79,664.64,1.4082023]
[1740147834980,1.08515734,665.78,664.64,1.4082023]
[1740147835182,1.08515734,665.77,664.64,1.4082023]
[1740147835383,1.08515734,665.76,664.64,1.4082023]
[1740147835575,1.08515734,665.75,664.64,1.4082023]
[1740147835777,1.08515734,665.74,664.64,0.30091478]
[1740147835974,1.89926231,665.73,664.64,0.30091478]
[1740147836178,1.08515734,665.72,664.64,0.30091478]
[1740147836378,0.81410497,665.73,664.64,0.30091478]
[1740147836379,1.08515734,665.71,664.64,0.30091478]
[1740147836581,1.89926231,665.7,664.64,0.30091478]
[1740147836781,1.08515734,665.69,664.64,0.30091478]
[1740147836981,1.08515734,665.68,664.64,0.30091478]
[1740147837281,1.08515734,665.67,664.64,0.30091478]
[1740147837477,1.08515734,665.66,664.64,0.30091478]
[1740147837679,1.08515734,665.65,664.64,0.30091478]
[1740147837984,1.08515734,665.64,664.64,0.30091478]
[1740147838185,1.08515734,665.63,664.64,0.30091478]
[1740147838389,1.89926231,665.62,664.64,0.30091478]
[1740147838684,1.89926231,665.61,664.64,0.30091478]
[1740147838888,1.08515734,665.6,664.64,0.30091478]
[1740147839087,1.08515734,665.59,664.64,0.30091478]
[1740147839388,1.89926231,665.58,664.64,0.30091478]
[1740147839586,1.08515734,665.57,664.64,0.30091478]
[1740147839787,1.08515734,665.56,664.64,0.30091478]
[1740147839986,1.08515734,665.55,664.64,0.30091478]
[1740147840182,1.08515734,665.54,664.64,0.30091478]
[1740147840387,1.08515734,665.53,664.64,0.30091478]
[1740147840586,1.08515734,665.52,664.64,0.30091478]
[1740147840788,1.08515734,665.51,664.64,0.30091478]
[1740147840988,1.08515734,665.5,664.64,0.30091478]
[1740147841289,1.08515734,665.49,664.64,0.30091478]
[1740147841588,1.08515734,665.48,664.64,0.30091478]
[1740147841788,1.08515734,665.47,664.8,1.10728752]
[1740147841981,1.08515734,665.46,664.8,1.10728752]
[1740147842185,1.08515734,665.45,664.8,1.10728752]
[1740147842384,1.08515734,665.44,664.8,1.10728752]
[1740147842587,1.08515734,665.43,664.8,1.10728752]
[1740147842787,1.08515734,665.42,664.8,1.10728752]
[1740147842983,1.08515734,665.41,664.8,1.10728752]
[1740147843189,1.08515734,665.4,664.8,1.10728752]
[1740147843389,1.08515734,665.39,664.8,1.10728752]
[1740147843695,1.08515734,665.38,664.8,1.10728752]
[1740147843890,1.08515734,665.37,664.8,1.10728752]
[1740147844083,1.08515734,665.36,664.8,1.10728752]
[1740147844290,1.08515734,665.35,664.8,1.10728752]
[1740147844489,1.08515734,665.34,664.7,1.10728752]
[1740147844691,1.89926231,665.33,664.71,0.30088309]
[1740147844889,1.08515734,665.32,664.71,0.30088309]
[1740147845090,1.08515734,665.31,664.71,0.30088309]
[1740147845290,1.08515734,665.3,664.71,0.30088309]
[1740147845590,1.08515734,665.29,664.71,0.30088309]
[1740147845785,1.08515734,665.28,664.71,0.30088309]
[1740147845991,1.08515734,665.27,664.71,0.30088309]
[1740147846185,1.08515734,665.26,664.71,0.30088309]
[1740147846387,1.08515734,665.25,664.72,1.10728752]